Cogmind - Beta 17 @@@ ROGUE MODE // 2026.08.18 @ 02:17:24 Player: Clog Result: Destroyed by G-34 Mercenary with Small Laser Performance ------------- Evolutions (0) 0 Regions Visited (1) 200 Robots Destroyed (20) 100 Value Destroyed (492) 492 Prototype IDs (0) 0 Alien Tech Used (0) 0 Bonus (0) 0 TOTAL SCORE: 792 Bonus ------- None Cogmind --------- Core Integrity 0/250 Matter 300/300 Energy 246/250 System Corruption 0% Temperature Warm (100) Movement Walking (190) Ox1 Location -10/Materials Parts ------- > --- POWER (1) -------- Ion Engine > --- PROPULSION (2) --- Aluminum Leg Aluminum Leg > --- UTILITY (2) ------ Improved Heat Sink Medium Storage Unit > --- WEAPON (2) ------- Medium Laser Beam Cannon > --- INVENTORY (10) --- Light Nuclear Core Aluminum Leg Aluminum Leg Structural Scanner Sensor Array Signal Interpreter Seismic Detector Targeting Computer Propulsion Shielding Utility Shielding Peak State ------------ > --- POWER ------------ Ion Engine > --- PROPULSION ------- Light Treads > --- UTILITY ---------- Improved Heat Sink Small Storage Unit > --- WEAPON ----------- Medium Laser Particle Gun > --- INVENTORY -------- Ion Engine Light Nuclear Core Heat Sink Structural Scanner Structural Scanner Seismic Detector Targeting Computer Propulsion Shielding [Rating: 10] Favorites ----------- Power Ion Engine Engine Ion Engine Propulsion Aluminum Leg Treads Light Treads Leg Aluminum Leg Utility Improved Heat Sink Device Improved Heat Sink Storage Small Storage Unit Weapon Medium Laser Energy Gun Medium Laser Energy Cannon Beam Cannon Ballistic Gun Assault Rifle Special Weapon Mining Laser Build | -11 -10 ------- Run | Yrd Mat Slots Evolved . | . . Power . | . . Propulsion . | . . Utility . | . . Weapon . | . . Parts Attached 16 | 7 9 Power 2 | 1 1 Engine 2 | 1 1 Core . | . . Reactor . | . . Propulsion 4 | 2 2 Treads 2 | 2 . Leg 2 | . 2 Wheel . | . . Hover . | . . Flight . | . . Utility 5 | 2 3 Device 3 | 1 2 Storage 2 | 1 1 Processor . | . . Hackware . | . . Protection . | . . Artifact . | . . Weapon 5 | 2 3 Energy Gun 2 | 1 1 Energy Cannon 1 | . 1 Ballistic Gun 1 | 1 . Ballistic Cannon . | . . Launcher . | . . Special Weapon 1 | . 1 Impact Weapon . | . . Slashing Weapon . | . . Piercing Weapon . | . . Special Melee Weapon . | . . Unidentified Prototypes . | . . Parts Lost 3 | . 3 Power . | . . Propulsion 2 | . 2 Utility . | . . Weapon 1 | . 1 Highest Loss Streak 2 | . 2 To Critical Strikes . | . . Average Backups 7 | 1 7 Power 1 | . 1 Propulsion . | . . Utility 5 | . 5 Weapon . | . . Tool/Special . | . . Unused Backups 10 | . 10 Power 1 | . 1 Propulsion 2 | . 2 Utility 7 | . 7 Weapon . | . . Tool/Special . | . . Average Slot Usage (%) 90 | . 90 Engine 14 | . 14 Treads 9 | . 9 Leg 10 | . 10 Device 14 | . 14 Storage 14 | . 14 Energy Gun 21 | . 21 Energy Cannon 2 | . 2 Ballistic Gun 3 | . 3 Peak Build Rating 10 | 7 10 Average Rating 8 | 4 9 On Entrance 3 | . 7 Avg Prop Armor Cover (%) . | . . Naked Turns . | . . Heaviest Build 21 | 15 21 Greatest Support 40 | 40 40 Greatest Overweight (x) 5 | . 5 Average Overweight (x) . | . . Largest Inventory Capacity 10 | 8 10 Average Capacity 8 | 7 9 Most Carried 10 | 5 10 Average Carried 7 | 1 7 Final Capacity 10 | 8 10 Final Carried 10 | 1 10 Class Distribution -------------------- 100% | Mutant Dominant Class ---------------- Mutant | -10/Materials Resources | -11 -10 ----------- Run | Yrd Mat Matter Collected 483 | 250 233 Remotely . | . . Salvage Created 705 | 29 676 Parts 42 | 3 39 Haulers Intercepted 2 | . 2 Recyclers Shooed 1 | . 1 Parts Field Recycled . | . . Retrieved Matter . | . . Parts Self-Destructed . | . . Prevented . | . . Parts Restored . | . . Kills | -11 -10 ------- Run | Yrd Mat Combat Hostiles Destroyed 13 | . 13 Guns 12 | . 12 Cannons 1 | . 1 Classes Destroyed 7 | 1 6 Worker 1 | . 1 Tunneler 1 | 1 . Hauler 2 | . 2 Operator 1 | . 1 Watcher 2 | . 2 Swarmer 3 | . 3 Grunt 10 | . 10 Best Kill Streak 3 | 1 3 Combat Bots Only 3 | . 3 Max Kills in Single Turn 1 | 1 1 Gunslinging . | . . Exploded . | . . Melee . | . . Uniques/NPCs Destroyed . | . . Combat | -11 -10 -------- Run | Yrd Mat Hostile Shots Fired 109 | . 109 Missed 40 | . 40 Hits 69 | . 69 Projectile 69 | . 69 Damage Taken 876 | . 876 Core 253 | . 253 Absorbed by Shields . | . . Core Remaining (%) 100 | 100 . Volleys Fired 77 | 7 70 Largest 2 | 1 2 Hottest 115 | 50 115 Shots Fired 143 | 7 136 Gun 131 | 7 124 Cannon 11 | . 11 Launcher . | . . Special 1 | . 1 Kinetic 41 | . 41 Thermal 102 | 7 95 Explosive . | . . Electromagnetic . | . . Robot Hit Streak 7 | 1 7 Robot Miss Streak 5 | 3 5 Penetration Max . | . . Secondary Targets 3 | . 3 Max Gunslinging Chain 1 | . 1 Shots Hit Robots 83 | 3 80 Core Hits 34 | 1 33 Critical Kills . | . . Critical Parts Destroyed . | . . Critical Strikes 4 | . 4 Burn 4 | . 4 Melee Attacks . | . . Impact . | . . Slashing . | . . Piercing . | . . Sneak Attacks . | . . Combat Hostiles . | . . Follow-up Attacks . | . . Damage Inflicted 1139 | 36 1103 Guns 1052 | 36 1016 Cannons 87 | . 87 Explosions . | . . Melee . | . . Ramming . | . . Kinetic 329 | . 329 Thermal 810 | 36 774 Explosive . | . . Electromagnetic . | . . Impact . | . . Slashing . | . . Piercing . | . . Highest Corruption . | . . Average Corruption . | . . Corruption Purged . | . . Corruption Blocked . | . . Overload Shots . | . . Overflow Damage . | . . Projectiles . | . . Explosions . | . . Melee . | . . Knockbacks . | . . Impact . | . . Kinetic . | . . Secondary . | . . Self-Inflicted Damage . | . . Shots . | . . Rammed . | . . Targets Rammed 1 | . 1 Kicked 1 | . 1 Crushed . | . . Highest Temperature 255 | 60 255 Average Temperature 65 | 27 68 Received Heat Transfer 471 | . 471 Effects 1 | . 1 Interference 1 | . 1 Siege Activations . | . . Martial Activations . | . . Shielding Activations . | . . Robots Disrupted . | . . Combat Hostiles . | . . Robots Corrupted . | . . Combat Hostiles . | . . Parts Fried . | . . Impact Corruptions . | . . Robots Melted . | . . Combat Hostiles . | . . Parts Melted 6 | . 6 Heat Transferred 2516 | 111 2405 Parts Sabotaged . | . . Parts Stolen . | . . Parts Stripped . | . . Power Chain Reactions . | . . Alert | -11 -10 ------- Run | Yrd Mat Maximum Alert Level . | . . Low Security (%) 100 | 100 100 Level 1 . | . . Level 2 . | . . Level 3 . | . . Level 4 . | . . Level 5 . | . . High Security . | . . Max Security . | . . Peak Influence 115 | . 115 Initial . | . . Average 29 | . 31 Influence Increases 412 | 5 407 Destroy 0b10 Robot/C 260 | . 260 Destroy 0b10 Robot/NC 35 | 5 30 Destroy Leader 68 | . 68 Successful Hack 18 | . 18 Disable Machine 15 | . 15 Destroy Structure 1 | . 1 Lose Combat Pursuer 15 | . 15 Influence Decreases 394 | 5 389 Time Decay 364 | 5 359 Lost Part 30 | . 30 Squads Dispatched 3 | . 3 Investigation 3 | . 3 Extermination . | . . Reinforcement . | . . Assault . | . . Garrison . | . . Intercept . | . . Searches Triggered . | . . Construction Impeded . | . . Haulers Reinforced . | . . Active Scanning Responses . | . . Cargo Convoy Interrupts . | . . Stealth | -11 -10 --------- Run | Yrd Mat Distress Signals . | . . Communications Jammed . | . . Distress Signals . | . . Times Spotted 20 | . 20 Peak Tracking Total 3 | . 3 Tactical Retreats 1 | . 1 Traps | -11 -10 ------- Run | Yrd Mat Traps Triggered 3 | . 3 Indirectly . | . . Trap Hack Attempts . | . . Triggered . | . . Disarmed . | . . Reprogrammed . | . . Reused . | . . Traps Extracted . | . . Installed . | . . Triggered . | . . Machines | -11 -10 ---------- Run | Yrd Mat Machines Disabled 1 | . 1 Max in Single Turn 1 | . 1 Machines Repaired . | . . Machines Dismantled . | . . Machines Sabotaged . | . . Overloaded Fab Kills . | . . Hacking | -11 -10 --------- Run | Yrd Mat Machines Accessed 7 | . 7 Terminals 7 | . 7 Fabricators . | . . Repair Stations . | . . Recycling Units . | . . Scanalyzers . | . . Garrison Access . | . . Total Hacks 16 | . 16 Successful 6 | . 6 Failed 10 | . 10 Catastrophic 3 | . 3 Database Lockouts . | . . Manual 15 | . 15 Terminals 16 | . 16 Fabricators . | . . Repair Stations . | . . Recycling Units . | . . Scanalyzers . | . . Garrison Access . | . . Terminal Hacks 1 | . 1 Registered Components 1 | . 1 Fabricator Hacks . | . . Repair Station Hacks . | . . Recycling Unit Hacks . | . . Scanalyzer . | . . Garrison Access Hacks . | . . Unauthorized Hacks 5 | . 5 Terminals 5 | . 5 Operators 1 | . 1 Skim 4 | . 4 Fabricators . | . . Repair Stations . | . . Recycling Units . | . . Scanalyzers . | . . Garrison Access . | . . Data Cores Recovered 1 | . 1 Used . | . . Hacking Detections 7 | . 7 Full Trace Events . | . . Feedback Events . | . . Feedback Blocked . | . . Robot Schematics Acquired . | . . Robots Built . | . . Authchips . | . . Time . | . . Total Robot Build Rating . | . . Part Schematics Acquired . | . . Parts Built . | . . Authchips . | . . Time . | . . Total Part Build Rating . | . . Part Studies Acquired . | . . Parts Repaired . | . . Time . | . . Parts Recycled . | . . Recycled Matter . | . . Retrieved Matter . | . . Retrieved Components . | . . Parts Scanalyzed . | . . Part Schematics Acquired . | . . Parts Damaged . | . . Bothacking | -11 -10 ------------ Run | Yrd Mat Used RIF Installer . | . . Robots Hacked . | . . Non-combat . | . . Combat . | . . Robot Hacks Applied . | . . Relay Couplers Released . | . . Fabnet Peak Effective % . | . . Robots Rewired . | . . Allies Hacked . | . . Hacks Repelled . | . . Allies | -11 -10 -------- Run | Yrd Mat Total Allies . | . . Largest Group . | . . Highest-Rated Group . | . . Highest-Rated Ally . | . . Total Orders . | . . Ally Attacks . | . . Total Damage . | . . Kills . | . . Allies Corrupted . | . . Allies Melted . | . . Intel | -11 -10 ------- Run | Yrd Mat Active Infowar (turns) 367 | 4 363 Seismic 367 | 4 363 Robot Analysis Total . | . . Derelict Logs Recovered . | . . Drone Launches . | . . Drone Recoveries . | . . Exploration | -11 -10 ------------- Run | Yrd Mat Turns Passed 1621 | 89 1532 Spaces Moved 698 | 49 649 Core 19 | 16 3 Treads 312 | 33 279 Legs 367 | . 367 Wheels . | . . Hover . | . . Flight . | . . Fastest Speed 50 | 50 160 Average Speed 193 | 124 198 Slowest Speed 300 | 160 300 Overloaded Moves . | . . Propulsion Burnouts . | . . Robots Hopped . | . . Potential Cave-ins . | . . Cave-ins Triggered . | . . Exploration Rate (%) 43 | 3 84 Regions Visited 1 Branch Regions . Pre-discovered Areas . | . . Known Exits Taken . | . . Unknown Exits Taken 1 | 1 . Scrap Searched . | . . Spaces Dug . | . . Terrain Destroyed . | . . Melee . | . . Projectile . | . . AOE . | . . Terrain Rammed . | . . Walls Destroyed . | . . Machines Disabled . | . . Actions | -11 -10 --------- Run | Yrd Mat Total 820 | 70 750 Wait . | . . Move 697 | 48 649 Hop . | . . Pick Up 22 | 8 14 Fast Attach 3 | . 3 Attach 9 | 7 2 Detach . | . . Swap 5 | . 5 Drop 6 | . 6 Fire 77 | 7 70 Melee . | . . Ram . | . . Kick 1 | . 1 Crush . | . . Escape Stasis . | . . Rewire . | . . Trap . | . . Miscellaneous . | . . Route ------- -11/Scrapyard -10/Materials (discovered 4 exits: [*Mat x3] / [*Min]) History --------- Turn | Location | Event 2 | -11/Scrapyard | Met Revision 17 7 | -11/Scrapyard | Discovered new exit (range 13) 90 | -11/Scrapyard | Entered Materials 317 | -10/Materials | Build established: Mutant 551 | -10/Materials | Discovered new exit (range 13) 625 | -10/Materials | Discovered new exit (range 10) 691 | -10/Materials | Core integrity fell below 50% 1282 | -10/Materials | Discovered new exit (range 15) 1475 | -10/Materials | Discovered new exit (range 16) 1602 | -10/Materials | Core integrity fell below 20% 1622 | -10/Materials | Destroyed by G-34 Mercenary with Small Laser Last Messages --------------- 01453_ Acquired Signal Interpreter. 01454_ Acquired 20 matter. 01458_ R-06 Scavenger collects Mining Laser. 01475_ EXIT=FOUND 01597_ Triggered Alarm Trap. 01597_ An alarm sounds. 01597_ ALERT: Alarm triggered, dispatching investigation squad. 01599_ G-34 Mercenary suffers critical hit (Burn). 01605_ G-34 Mercenary overheating. 01610_ G-34 Mercenary heat damages Aluminum Leg. 01610_ G-34 Mercenary overheating. 01611_ Melted Aluminum Leg. 01611_ G-34 Mercenary overheating. 01612_ G-34 Mercenary heat short circuits Aluminum Leg. 01612_ G-34 Mercenary overheating. 01614_ G-34 Mercenary heat short circuits Sml. Laser. Map ----- +----------------------------------------------------+ | ##########????????# #???# #?????????###+### "T" | | #????????# #???# #?????????# # | | """ """#????????# #####+#####?????#"" # ! | | """ R"#????????# # %"T" #?????#"T # | | """ """#????????+ # #?????#"" ##+### | | #????????# # """ #?????# ## | | / #????????# # """"" #?????# %+% % | | #????????# # """"" #?????# ## | | #????????# # """"" #?????#= ###### | | ########+########## + """ #?????############ | | # #???????????# | | ###########+########### | | """ """ # % % | | "Y" """ ########### %!* ! ! | | ^ """ #?????????# !%* | | #?????????# ##+##################### | | % #??######## # #???????????????? | | #??# # !# #???????????????? | | #??# """ #[ !# """ #???????????????? | | #??# """ #*!%# """ #???????????????? | | #??# """ # ]!# """ #???????????????? | | ###+#??# """ # ]# #???????????????? | | #??????# """ # ########???????????????? | | +## #??????# + #??????????????????????? | | ## ##??????# ""# #??????????????????????? | | ## #???????# ""# @#??????????????????????? | | ## #???????# T"# #??????????????????????? | | ## #?####### ""# #??????????????????????? | | ## #? ## ""# #??????????????????????? | | ## # """ ## # #??????????????????????? | | #### # """ ######### #??????????????????????? | | + + """ #???????# #??????????????????????? | | # # #???????# #??????????????????????? | | """# # #???????; +??????????????????????? | | ""?#####?######???????#g #??????????????????????? | | ""????????????????????# g #??????????????????????? | | ?????????????????????# #??????????????????????? | | #?????????????????????####???????????????????????? | | ?????????????????????????????????????????????????? | | ?????????????????????????????????????????????????? | | ?????????????????????????????????????????????????? | | ?????????????????????????????????????????????????? | | | | | | | | | | | | | | | | | +----------------------------------------------------+ Best States ------------- Heat Dissipation 39 Energy Generation 10 Energy Capacity 250 Matter Stores 300 Matter Capacity 300 Sight Range 16 Terrain Scan Density 10 Evasion (%) 50 Recoil Reduction 2 Item Schematics ----------------- None Robot Schematics ------------------ None Fabricated ------------ Nothing Repaired ---------- Nothing Studied --------- None Alien Tech Used ----------------- None Achievements -------------- None Challenges ------------ None Game ------ Seed IonParticleSword Manual? 0 Play Time 00:11:09 Cumulative 26.9 hours Start 2026.08.18 @ 02:07:23 End 2026.08.18 @ 02:17:24 Sessions 1 Manual Loads 0 Difficulty Rogue Special Mode None Game No. 30 Rogue 27 Adventurer 3 Explorer 0 Win Type - Total 1 Types 1/0/0/0/0/0/0/0/0/0 Lore% 28 Gallery% 23 Achievement% 25 Wizard Run 0 Options --------- Layout 1 ASCII 0 Keyboard 0 Movement Mouse Keybinds 0 Fullscreen 1 Font 32/SmallcapsGlow Map View 50x35 Zoom Use 0% Tactical HUD 1 Map Filters NONE Filters NONE Steam 1 RUN: 0e0c8db0-301f-4027-b407-3abf9219ba76